fUSD/lending_fUSD_20240829
["ID","MTS","AMOUNT","RATE_DAILY","PERIOD"]
[336546658,1724947843445,-153.079,0.00011,2]
[336546659,1724947843454,-182.527042,0.00011,2]
[336546660,1724947843464,-182.527042,0.00011,2]
[336546661,1724947843473,-151.0,0.00011,2]
[336546662,1724947843482,-152.19519,0.00011,2]
[336546663,1724947843491,-151.0,0.00011,2]
[336546664,1724947843501,-151.0,0.00011,2]
[336546665,1724947843510,-151.0,0.00011,2]
[336546666,1724947843519,-151.0,0.00011,2]
[336546667,1724947843528,-151.0,0.00011,2]
[336546668,1724947843537,-154.318887,0.00011,2]
[336546669,1724947843546,-154.318887,0.00011,2]
[336546671,1724947843555,-154.318887,0.00011,2]
[336546672,1724947843564,-154.318887,0.00011,2]
[336546674,1724947843573,-1000.0,0.00011,2]
[336546676,1724947843582,-1000.0,0.00011,2]
[336546678,1724947843591,-1000.0,0.00011,2]
[336546680,1724947843600,-1000.0,0.00011,2]
[336546681,1724947843610,-1000.0,0.00011,2]
[336546684,1724947843619,-1000.0,0.00011,2]
[336546686,1724947843628,-1000.0,0.00011,2]
[336546688,1724947843637,-1000.0,0.00011,2]
[336546690,1724947843647,-1000.0,0.00011,2]
[336546692,1724947843657,-1000.0,0.00011,2]
[336546694,1724947843666,-1000.0,0.00011,2]
[336546695,1724947843675,-1000.0,0.00011,2]
[336546697,1724947843684,-1000.0,0.00011,2]
[336546699,1724947843693,-1000.0,0.00011,2]
[336546701,1724947843702,-1000.0,0.00011,2]
[336546703,1724947843711,-1000.0,0.00011,2]
[336546705,1724947843720,-1000.0,0.00011,2]
[336546706,1724947843728,-1000.0,0.00011,2]
[336546707,1724947843737,-1000.0,0.00011,2]
[336546708,1724947843747,-1000.0,0.00011,2]
[336546709,1724947843756,-1000.0,0.00011,2]
[336546710,1724947843766,-855.0,0.00011,2]
[336546711,1724947843775,-2735.68,0.00011,2]
[336546712,1724947843784,-496.05406,0.00011,2]
[336546713,1724947843794,-600.0,0.00011004,2]
[336546714,1724947843803,-46507.0,0.00011014,2]
[336546715,1724947843812,-500.0,0.00011035,2]
[336546716,1724947843822,-569.223509,0.00011043,2]
[336546717,1724947843831,-500.0,0.00011062,2]
[336546718,1724947843842,-205.0,0.0001107,2]
[336546719,1724947843852,-210.0,0.0001107,2]
[336546720,1724947843862,-500.0,0.0001109,2]
[336546721,1724947843871,-226.0,0.000111,2]
[336546722,1724947843880,-955.9,0.000111,2]
[336546723,1724947843890,-358.0,0.000111,2]
[336546724,1724947843899,-1000.0,0.000111,2]
[336546725,1724947843909,-2000.0,0.00011106,2]
[336546726,1724947843918,-200.0,0.00011106,2]
[336546727,1724947843927,-200.0,0.00011106,2]
[336546728,1724947843936,-2000.0,0.00011106,2]
[336546729,1724947843946,-200.0,0.00011106,2]
[336546730,1724947843955,-200.0,0.00011106,2]
[336546731,1724947843965,-500.0,0.00011117,2]
[336546732,1724947843975,-163.931,0.00011117,2]
[336546733,1724947843984,-64570.6910546,0.00011123,2]
[336546734,1724947843993,-58195.90371944,0.0001113,2]
[336546735,1724947844003,-500.0,0.00011145,2]
[336546736,1724947844012,-600.0,0.00011155,2]
[336546737,1724947844021,-500.0,0.00011172,2]
[336546738,1724947844031,-500.0,0.00011173,2]
[336546739,1724947844040,-500.0,0.00011173,2]
[336546740,1724947844050,-569.223509,0.00011176,2]
[336546741,1724947844059,-175.039395,0.00011176,2]
[336546742,1724947844069,-174.147186,0.00011176,2]
[336546743,1724947844078,-541.007346,0.00011181,2]
[336546744,1724947844088,-541.007346,0.00011181,2]
[336546745,1724947844097,-151.0,0.00011181,2]
[336546746,1724947844106,-151.0,0.00011181,2]
[336546747,1724947844116,-485.329183,0.00011181,2]
[336546748,1724947844125,-485.329183,0.00011181,2]
[336546749,1724947844400,-508.331435,0.00011181,2]
[336546750,1724947844411,-508.331435,0.00011181,2]
[336546751,1724947844420,-1965.734077,0.00011181,2]
[336546752,1724947844430,-854.991406,0.00011181,2]
[336546753,1724947844439,-28.54797508,0.00011181,2]
[336546754,1724947844460,-852.50000011,0.00011181,2]
[336546755,1724947844471,-382.92113158,0.00011181,2]
[336546756,1724947844482,-642.70249532,0.00011181,2]
[336546757,1724947844494,-59.06247491,0.00011181,2]
[336546758,1724947844503,-489.72975202,0.00011181,2]
[336546759,1724947844515,-215.43501798,0.00011181,2]
[336546760,1724947844524,-388.13004383,0.00011181,2]
[336546761,1724947844604,-466.86136217,0.00011181,2]
[336546762,1724947844613,-151.0,0.00011181,2]
[336546763,1724947844622,-705.16477,0.00011181,2]
[336546764,1724947844631,-179.97386783,0.00011181,2]
[336546765,1724947845793,-318.76929017,0.00011181,2]
[336546766,1724947845803,-151.0,0.00011181,2]
[336546767,1724947845812,-498.743158,0.00011181,2]
[336546768,1724947845822,-140.7471973,0.00011181,2]
[336546769,1724947845842,-10.2528027,0.00011181,2]
[336546770,1724947845852,-580.036544,0.00011181,2]
[336546771,1724947845861,-580.036544,0.00011181,2]
[336546772,1724947845871,-526.635904,0.00011181,2]
[336546773,1724947845881,-526.635904,0.00011181,2]
[336546774,1724947845892,-151.0,0.00011189,2]
[336546775,1724947845903,-151.0,0.00011189,2]
[336546776,1724947845912,-151.0,0.00011189,2]
[336546777,1724947845922,-151.935548,0.00011189,2]
[336546779,1724947845931,-151.0,0.00011189,2]
[336546781,1724947845941,-152.889294,0.00011189,2]
[336546782,1724947845951,-182.527042,0.00011189,2]
[336546783,1724947845961,-182.527042,0.00011189,2]
[336546784,1724947845970,-151.0,0.00011189,2]
[336546785,1724947845980,-151.0,0.00011189,2]
[336546786,1724947845990,-151.0,0.00011189,2]
[336546787,1724947846000,-151.0,0.00011189,2]
[336546788,1724947846010,-151.0,0.00011189,2]
[336546789,1724947846019,-151.0,0.00011189,2]
[336546790,1724947846029,-151.0,0.00011189,2]
[336546791,1724947846039,-268.844245,0.00011189,2]
[336546792,1724947846049,-151.0,0.00011189,2]
[336546793,1724947846059,-151.0,0.00011189,2]
[336546794,1724947846070,-230.249197,0.00011189,2]
[336546795,1724947846080,-151.0,0.00011189,2]
[336546796,1724947846089,-151.0,0.00011189,2]
[336546797,1724947846099,-151.0,0.00011189,2]
[336546798,1724947846109,-151.0,0.00011189,2]
[336546799,1724947846119,-151.0,0.00011189,2]
[336546800,1724947846128,-96.26529964,0.00011189,2]
[336546801,1724947890211,250.0,0.00010392,2]
[336546803,1724948004073,250.0,0.00010959,2]
[336546804,1724948072825,223.07,0.00010363,2]
[336546805,1724948103141,509.08876229,0.00010958,2]
[336546806,1724948190049,228.72,8.417e-05,2]
[336546807,1724948190238,228.72,0.00010681,2]
[336546808,1724948191329,160.56,0.00010335,2]
[336546809,1724948232467,672.06,0.0001031,2]
[336546810,1724948274052,250.0,0.00010337,2]
[336546811,1724948315395,3937.71,0.00010362,2]
[336546812,1724948379659,446.21,0.00010959,2]
[336546813,1724948491886,183.00821368,0.00010917,2]
[336546814,1724948501554,154.23,0.00010402,2]
[336546815,1724948600639,795.0,0.0001096,2]
[336546816,1724948622006,795.0,0.0001096,2]
[336546817,1724948643581,795.0,0.0001096,2]
[336546818,1724948662280,221.54,0.00010318,2]
[336546819,1724948665038,795.0,0.0001096,2]
[336546820,1724948675517,218.06,8.396e-05,2]
[336546821,1724948675768,218.06,0.0001066,2]
[336546822,1724948728610,160.56,0.00010326,2]
[336546823,1724948769670,462.35,0.00010307,2]
[336546826,1724948824308,2499.0,0.0001,2]
[336546827,1724948827172,2425.04959483,0.00010469,2]
[336546833,1724948927289,1425.5366845,0.000115,30]
[336546834,1724948941931,250.0,0.00010223,2]
[336546835,1724948949435,1703.0,0.000109,2]
[336546844,1724949032269,-305.10573782,0.0001099,2]
[336546845,1724949032279,-150.0,0.00010995,2]
[336546846,1724949032289,-182.50302938,0.00010996,2]
[336546847,1724949032303,-5175.03812854,0.00010996,2]
[336546848,1724949032314,-3406.03390733,0.00010996,2]
[336546849,1724949032326,-1367.57781629,0.00010996,2]
[336546850,1724949032338,-2031.63252722,0.00010996,2]
[336546851,1724949032370,-784.34351086,0.00010996,2]
[336546852,1724949032381,-1299.333284,0.00010996,2]
[336546853,1724949032394,-73638.90717764,0.00010996,2]
[336546854,1724949032404,-549.0,0.00010999,2]
[336546855,1724949032414,-2420.26,0.00011,2]
[336546856,1724949032424,-304.913,0.00011018,2]
[336546857,1724949032433,-930.0,0.00011018,2]
[336546858,1724949032443,-150.0,0.00011018,2]
[336546859,1724949032453,-552.0,0.00011018,2]
[336546860,1724949032462,-1897.0,0.00011018,2]
[336546861,1724949032471,-292.561,0.00011018,2]
[336546862,1724949032480,-248.0,0.00011018,2]
[336546863,1724949032490,-1077.564,0.00011018,2]
[336546864,1724949032499,-623.0,0.00011018,2]
[336546865,1724949032509,-5851.0,0.00011018,2]
[336546866,1724949032518,-2014.155,0.00011018,2]
[336546867,1724949032528,-359.019,0.00011018,2]
[336546868,1724949032537,-289.683,0.00011018,2]
[336546869,1724949032547,-1989.22747459,0.00011042,2]
[336546870,1724949032559,-9678.66962938,0.00011042,2]
[336546871,1724949032578,-644.4503927,0.00011042,2]
[336546872,1724949032589,-5373.36897696,0.00011042,2]
[336546873,1724949032608,-6959.30203298,0.00011042,2]
[336546874,1724949032619,-2207.62085434,0.00011042,2]
[336546875,1724949033679,-1258.0,0.00011018,2]
[336546876,1724949033690,-1264.06617273,0.00011042,2]
[336546877,1724949033702,-7384.92556584,0.00011042,2]
[336546878,1724949033731,-672.3424,0.00011042,2]
[336546879,1724949033743,-363.76455997,0.00011042,2]
[336546880,1724949033755,-966.21666469,0.00011042,2]
[336546881,1724949033767,-741.8811006,0.00011042,2]
[336546882,1724949034888,207.97,0.00010959,2]
[336546885,1724949038340,-615.002,0.00011018,2]
[336546886,1724949038375,-364.617,0.00011018,2]
[336546887,1724949038385,-554.186945,0.00011042,2]
[336546888,1724949038513,-576.87446552,0.00011042,2]
[336546889,1724949038526,-4723.95499151,0.00011042,2]
[336546890,1724949038537,-2116.2561326,0.00011042,2]
[336546891,1724949038560,-11930.89612519,0.00011042,2]
[336546892,1724949038590,-250.485,0.00011042,2]
[336546893,1724949038615,-13576.1492154,0.00011042,2]
[336546894,1724949038625,-1146.12512378,0.00011042,2]
[336546895,1724949038635,-5467.69281273,0.00011069,2]
[336546896,1724949038649,-795.0,0.00011075,2]
[336546897,1724949038658,-216.30053767,0.00011079,2]
[336546898,1724949038668,-2668.28,0.00011079,2]
[336546899,1724949038677,-1196.14328,0.0001108,2]
[336546900,1724949038689,-6411.78,0.0001108,2]
[336546901,1724949038698,-283.6688,0.00011084,2]
[336546902,1724949038707,-3651.37,0.00011084,2]
[336546903,1724949038718,-1517.42,0.00011084,2]
[336546904,1724949038728,-4399.7388,0.00011089,2]
[336546905,1724949038739,-12658.7499,0.00011089,2]
[336546907,1724949038748,-38072.0562,0.00011089,2]
[336546909,1724949038758,-5284.2917,0.00011089,2]
[336546911,1724949038767,-170.5006,0.00011089,2]
[336546913,1724949038777,-150.99,0.00011132,2]
[336546914,1724949038787,-499.99,0.00011132,2]
[336546916,1724949038796,-8237.67,0.00011132,2]
[336546918,1724949038807,-154.318887,0.00011142,2]
[336546920,1724949038816,-27631.26,0.00011142,2]
[336546922,1724949038826,-19999.99,0.00011142,2]
[336546924,1724949038835,-1222.776,0.00011179,2]
[336546926,1724949038844,-3898.8397271,0.00011184,2]
[336546928,1724949038854,-172.84134985,0.00011188,2]
[336546930,1724949038864,-986.41695759,0.00011188,2]
[336546932,1724949038874,-213.548039,0.00011189,2]
[336546934,1724949038884,-213.548039,0.00011189,2]
[336546936,1724949038893,-151.0,0.00011189,2]
[336546938,1724949038904,-230.405102,0.00011189,2]
[336546940,1724949038913,-334.363038,0.00011189,2]
[336546942,1724949038923,-230.405102,0.00011189,2]
[336546944,1724949038932,-334.363038,0.00011189,2]
[336546946,1724949038941,-151.0,0.00011189,2]
[336546947,1724949038950,-151.0,0.00011189,2]
[336546949,1724949038959,-151.0,0.00011189,2]
[336546951,1724949038969,-232.876837,0.00011189,2]
[336546953,1724949038978,-232.876837,0.00011189,2]
[336546955,1724949038987,-151.16178,0.00011189,2]
[336546957,1724949038997,-151.0,0.00011189,2]
[336546959,1724949039006,-151.0,0.00011189,2]
[336546961,1724949039015,-151.0,0.00011189,2]
[336546962,1724949039026,-151.0,0.00011189,2]
[336546997,1724949039364,-2000.0,0.00011189,2]
[336546999,1724949039374,-200.0,0.00011189,2]
[336547001,1724949039383,-154.318887,0.00011189,2]
[336547003,1724949039393,-200.0,0.00011189,2]
[336547005,1724949039402,-1000.0,0.00011189,2]
[336547007,1724949039412,-1000.0,0.00011189,2]
[336547009,1724949039421,-1000.0,0.00011189,2]
[336547011,1724949039431,-1000.0,0.00011189,2]
[336547013,1724949039440,-1006.7126008,0.00011189,2]
[336547015,1724949039450,-500.0,0.00011189,2]
[336547016,1724949039459,-1967.230135,0.00011192,2]
[336547018,1724949039469,-72769.295981,0.00011192,2]
[336547020,1724949039478,-226.0,0.000112,2]
[336547022,1724949039488,-358.0,0.000112,2]
[336547024,1724949039497,-1000.0,0.000112,2]
[336547026,1724949039506,-500.0,0.00011216,2]
[336547028,1724949039516,-500.0,0.00011244,2]
[336547030,1724949039525,-500.0,0.00011271,2]
[336547032,1724949039534,-500.0,0.00011299,2]
[336547034,1724949039544,-1657.0,0.000113,2]
[336547035,1724949039555,-200.0,0.00011301,2]
[336547037,1724949039565,-500.0,0.00011326,2]
[336547039,1724949039574,-200.0,0.00011414,2]
[336547041,1724949039583,-351.57017114,0.00011456,2]
[336547043,1724949039593,-400.0,0.0001147,2]
[336547045,1724949039602,-400.0,0.0001147,2]
[336547047,1724949039612,-400.0,0.0001147,2]
[336547049,1724949039621,-400.0,0.0001147,2]
[336547051,1724949039631,-400.0,0.0001147,2]
[336547052,1724949039645,-150.82,0.0001149,2]
[336547054,1724949039654,-190.38230568,0.00011499,2]
[336547056,1724949039663,-500.0,0.00011499,2]
[336547058,1724949039672,-468.69275926,0.00011499,2]
[336547060,1724949039682,-150.0,0.000115,2]
[336547062,1724949039691,-207.44,0.000115,2]
[336547063,1724949039701,-150.0,0.000115,2]
[336547065,1724949039710,-150.0,0.000115,2]
[336547067,1724949039720,-150.0,0.000115,2]
[336547069,1724949039730,-357.11,0.000115,2]
[336547071,1724949039739,-713.98,0.000115,2]
[336547073,1724949039748,-150.0,0.000115,2]
[336547075,1724949039757,-213.548039,0.000115,2]
[336547077,1724949039767,-213.548039,0.000115,2]
[336547078,1724949039776,-357.11,0.000115,2]
[336547080,1724949039785,-150.0,0.000115,2]
[336547082,1724949039795,-575.35,0.000115,2]
[336547084,1724949039814,-357.11,0.000115,2]
[336547086,1724949039823,-162.53,0.000115,2]
[336547088,1724949039832,-150.0,0.000115,2]
[336547090,1724949039842,-151.0,0.000115,2]
[336547092,1724949039851,-357.01,0.000115,2]
[336547094,1724949039860,-150.0,0.000115,2]
[336547096,1724949039870,-359.68,0.000115,2]
[336547098,1724949039879,-531.85,0.000115,2]
[336547100,1724949039888,-230.405102,0.000115,2]
[336547102,1724949039899,-334.363038,0.000115,2]
[336547104,1724949039909,-230.405102,0.000115,2]
[336547105,1724949039918,-334.363038,0.000115,2]
[336547107,1724949039927,-531.85,0.000115,2]
[336547109,1724949039936,-357.11,0.000115,2]
[336547111,1724949039945,-151.0,0.000115,2]
[336547113,1724949039955,-531.85,0.000115,2]
[336547115,1724949039965,-713.94,0.000115,2]
[336547117,1724949039975,-482.43,0.000115,2]
[336547119,1724949039984,-357.11,0.000115,2]
[336547120,1724949039994,-151.0,0.000115,2]
[336547122,1724949040004,-531.85,0.000115,2]
[336547124,1724949040014,-357.11,0.000115,2]
[336547126,1724949040024,-327.8,0.000115,2]
[336547128,1724949040033,-151.0,0.000115,2]
[336547130,1724949040043,-232.876837,0.000115,2]
[336547132,1724949040057,-232.876837,0.000115,2]
[336547134,1724949040066,-357.11,0.000115,2]
[336547136,1724949040075,-531.85,0.000115,2]
[336547138,1724949040085,-150.0,0.000115,2]
[336547140,1724949040094,-151.0,0.000115,2]
[336547141,1724949040104,-151.0,0.000115,2]
[336547143,1724949040113,-154.984236,0.000115,2]
[336547145,1724949040124,-427.09,0.000115,2]
[336547147,1724949040133,-531.85,0.000115,2]
[336547149,1724949040143,-421.55,0.000115,2]
[336547151,1724949040152,-357.11,0.000115,2]
[336547153,1724949040161,-397.75,0.000115,2]
[336547155,1724949040171,-151.0,0.000115,2]
[336547156,1724949040180,-150.0,0.000115,2]
[336547158,1724949040189,-357.11,0.000115,2]
[336547160,1724949040199,-531.85,0.000115,2]
[336547162,1724949040211,-784.23,0.000115,2]
[336547164,1724949040220,-421.73,0.000115,2]
[336547166,1724949040230,-531.85,0.000115,2]
[336547168,1724949040241,-427.09,0.000115,2]
[336547170,1724949040251,-300.0,0.000115,2]
[336547172,1724949040260,-421.73,0.000115,2]
[336547174,1724949040270,-358.23,0.000115,2]
[336547176,1724949040279,-427.09,0.000115,2]
[336547178,1724949040288,-531.85,0.000115,2]
[336547180,1724949040298,-421.73,0.000115,2]
[336547182,1724949040307,-714.16,0.000115,2]
[336547184,1724949040316,-150.0,0.000115,2]
[336547186,1724949040325,-427.09,0.000115,2]
[336547188,1724949040335,-846.33,0.000115,2]
[336547189,1724949040344,-531.48,0.000115,2]
[336547191,1724949040354,-714.1,0.000115,2]
[336547193,1724949040363,-150.0,0.000115,2]
[336547195,1724949040373,-222.88,0.000115,2]
[336547197,1724949040382,-300.0,0.000115,2]
[336547199,1724949040391,-427.09,0.000115,2]
[336547200,1724949040401,-357.11,0.000115,2]
[336547203,1724949040410,-421.73,0.000115,2]
[336547204,1724949040420,-531.8,0.000115,2]
[336547206,1724949040429,-150.0,0.000115,2]
[336547208,1724949040439,-356.93,0.000115,2]
[336547210,1724949040449,-853.68,0.000115,2]
[336547212,1724949040459,-421.73,0.000115,2]
[336547215,1724949040474,-427.09,0.000115,2]
[336547217,1724949040484,-1063.42,0.000115,2]
[336547219,1724949040494,-150.0,0.000115,2]
[336547221,1724949040503,-421.73,0.000115,2]
[336547223,1724949040513,-357.11,0.000115,2]
[336547225,1724949040523,-427.09,0.000115,2]
[336547227,1724949040533,-790.9,0.000115,2]
[336547229,1724949040543,-357.11,0.000115,2]
[336547231,1724949040554,-150.0,0.000115,2]
[336547233,1724949040563,-531.17,0.000115,2]
[336547235,1724949040572,-150.0,0.000115,2]
[336547237,1724949040582,-421.73,0.000115,2]
[336547239,1724949040591,-531.8,0.000115,2]
[336547241,1724949040601,-287.86,0.000115,2]
[336547243,1724949040611,-791.25,0.000115,2]
[336547245,1724949040620,-150.0,0.000115,2]
[336547246,1724949040630,-843.39,0.000115,2]
[336547248,1724949040641,-427.09,0.000115,2]
[336547250,1724949040653,-150.0,0.000115,2]
[336547253,1724949040663,-357.11,0.000115,2]
[336547255,1724949040672,-150.0,0.000115,2]
[336547256,1724949040683,-150.0,0.000115,2]
[336547258,1724949040693,-150.0,0.000115,2]
[336547260,1724949040702,-427.09,0.000115,2]
[336547262,1724949040711,-714.16,0.000115,2]
[336547265,1724949040723,-842.61,0.000115,2]
[336547267,1724949040732,-535.93,0.000115,2]
[336547269,1724949040742,-150.0,0.000115,2]
[336547271,1724949040752,-150.0,0.000115,2]
[336547273,1724949040761,-791.25,0.000115,2]
[336547275,1724949040771,-150.0,0.000115,2]
[336547277,1724949040781,-531.85,0.000115,2]
[336547279,1724949040790,-150.0,0.000115,2]
[336547281,1724949040800,-1582.43,0.000115,2]
[336547283,1724949040809,-302.09,0.000115,2]
[336547285,1724949040818,-300.0,0.000115,2]
[336547287,1724949040829,-421.73,0.000115,2]
[336547289,1724949040840,-714.1,0.000115,2]
[336547291,1724949040849,-427.09,0.000115,2]
[336547293,1724949040860,-150.0,0.000115,2]
[336547295,1724949040869,-150.0,0.000115,2]
[336547297,1724949040878,-150.0,0.000115,2]
[336547299,1724949040887,-421.73,0.000115,2]
[336547301,1724949040897,-150.0,0.000115,2]
[336547302,1724949040906,-791.25,0.000115,2]
[336547303,1724949040915,-427.09,0.000115,2]
[336547304,1724949040926,-357.11,0.000115,2]
[336547305,1724949040935,-531.85,0.000115,2]
[336547306,1724949040944,-150.0,0.000115,2]
[336547307,1724949040954,-427.09,0.000115,2]
[336547308,1724949040963,-150.0,0.000115,2]
[336547309,1724949040973,-150.0,0.000115,2]
[336547310,1724949040982,-150.0,0.000115,2]
[336547311,1724949040991,-150.0,0.000115,2]
[336547312,1724949041001,-150.0,0.000115,2]
[336547313,1724949041010,-531.85,0.000115,2]
[336547314,1724949041020,-150.0,0.000115,2]
[336547315,1724949041029,-357.11,0.000115,2]
[336547316,1724949041038,-531.85,0.000115,2]
[336547318,1724949041047,-150.0,0.000115,2]
[336547320,1724949041057,-791.25,0.000115,2]
[336547322,1724949041067,-179.81,0.000115,2]
[336547324,1724949041076,-150.0,0.000115,2]
[336547326,1724949041085,-853.55,0.000115,2]
[336547328,1724949041095,-664.66,0.000115,2]
[336547330,1724949041104,-421.7,0.000115,2]
[336547332,1724949041114,-150.0,0.000115,2]
[336547333,1724949041124,-150.0,0.000115,2]
[336547335,1724949041133,-150.0,0.000115,2]
[336547337,1724949041143,-150.0,0.000115,2]
[336547339,1724949041153,-357.11,0.000115,2]
[336547341,1724949041165,-531.85,0.000115,2]
[336547343,1724949041174,-421.7,0.000115,2]
[336547345,1724949041185,-1685.33,0.000115,2]
[336547347,1724949041194,-150.0,0.000115,2]
[336547350,1724949041203,-427.09,0.000115,2]
[336547352,1724949041213,-150.0,0.000115,2]
[336547354,1724949041222,-150.0,0.000115,2]
[336547356,1724949041232,-531.85,0.000115,2]
[336547358,1724949041243,-150.0,0.000115,2]
[336547360,1724949041253,-791.25,0.000115,2]
[336547362,1724949041262,-843.24,0.000115,2]
[336547364,1724949041272,-150.0,0.000115,2]
[336547366,1724949041283,-427.09,0.000115,2]
[336547368,1724949041292,-357.11,0.000115,2]
[336547370,1724949041302,-713.96,0.000115,2]
[336547372,1724949041311,-421.7,0.000115,2]
[336547373,1724949041321,-150.0,0.000115,2]
[336547375,1724949041331,-447.14,0.000115,2]
[336547377,1724949041341,-366.06,0.000115,2]
[336547379,1724949041350,-357.11,0.000115,2]
[336547381,1724949041360,-150.0,0.000115,2]
[336547383,1724949041369,-427.09,0.000115,2]
[336547385,1724949041379,-531.85,0.000115,2]
[336547387,1724949041388,-150.0,0.000115,2]
[336547389,1724949041398,-557.355235,0.000115,2]
[336547391,1724949041407,-531.85,0.000115,2]
[336547393,1724949041417,-427.09,0.000115,2]
[336547395,1724949041426,-153.2,0.000115,2]
[336547397,1724949041435,-150.0,0.000115,2]
[336547399,1724949041444,-421.73,0.000115,2]
[336547400,1724949041454,-357.11,0.000115,2]
[336547403,1724949041464,-150.0,0.000115,2]
[336547405,1724949041474,-531.85,0.000115,2]
[336547407,1724949041484,-427.09,0.000115,2]
[336547408,1724949041492,-333.16,0.000115,2]
[336547410,1724949041502,-150.0,0.000115,2]
[336547412,1724949041511,-421.73,0.000115,2]
[336547414,1724949041520,-197.77,0.000115,2]
[336547416,1724949041530,-150.0,0.000115,2]
[336547418,1724949041539,-150.0,0.000115,2]
[336547420,1724949041550,-357.11,0.000115,2]
[336547422,1724949041560,-150.0,0.000115,2]
[336547424,1724949041570,-944.19,0.000115,2]
[336547426,1724949041579,-531.85,0.000115,2]
[336547428,1724949041589,-357.11,0.000115,2]
[336547430,1724949041598,-421.73,0.000115,2]
[336547432,1724949041608,-150.0,0.000115,2]
[336547434,1724949041617,-854.11,0.000115,2]
[336547436,1724949041627,-164.18,0.000115,2]
[336547437,1724949041637,-421.73,0.000115,2]
[336547440,1724949041652,-357.11,0.000115,2]
[336547442,1724949041661,-150.0,0.000115,2]
[336547443,1724949041670,-791.25,0.000115,2]
[336547445,1724949041680,-854.04,0.000115,2]
[336547447,1724949041691,-531.85,0.000115,2]
[336547449,1724949041701,-300.0,0.000115,2]
[336547451,1724949041711,-276.13,0.000115,2]
[336547453,1724949041721,-150.41,0.000115,2]
[336547456,1724949041730,-1063.43,0.000115,2]
[336547457,1724949041740,-150.0,0.000115,2]
[336547459,1724949041750,-300.0,0.000115,2]
[336547461,1724949041759,-357.11,0.000115,2]
[336547463,1724949041769,-427.09,0.000115,2]
[336547465,1724949041779,-423.96,0.000115,2]
[336547467,1724949041788,-791.25,0.000115,2]
[336547469,1724949041798,-150.0,0.000115,2]
[336547471,1724949041808,-427.09,0.000115,2]
[336547473,1724949041818,-150.0,0.000115,2]
[336547475,1724949041827,-421.66,0.000115,2]
[336547477,1724949041836,-306.47,0.000115,2]
[336547479,1724949041846,-150.0,0.000115,2]
[336547481,1724949041855,-791.25,0.000115,2]
[336547483,1724949041865,-531.85,0.000115,2]
[336547485,1724949041875,-150.0,0.000115,2]